bitfinex/quotes_SOLUSD_20220210
["timestamp","ask_amount","ask_price","bid_price","bid_amount"]
[1644506925081,94.59317044,111.3,111.2,35.03104755]
[1644506925280,94.59317044,111.3,111.2,41.03104755]
[1644506925582,94.59317044,111.3,111.2,42.6755132]
[1644506925780,59.894,111.3,111.21,13.4825]
[1644506925979,46.4103,111.3,111.21,10.67]
[1644506926181,10.693,111.31,111.22,1.64446565]
[1644506926381,10.693,111.31,111.23,10.67]
[1644506926779,10.693,111.31,111.23,59.72507318]
[1644506927181,10.693,111.31,111.24,15.12296565]
[1644506927382,10.693,111.31,111.24,18.56446565]
[1644506927783,10.693,111.31,111.25,35.61522489]
[1644506928183,10.693,111.31,111.25,35.86522489]
[1644506928581,10.943,111.31,111.25,35.86522489]
[1644506928781,10.943,111.31,111.25,49.34262489]
[1644506928981,10.943,111.31,111.25,13.4774]
[1644506929183,10.943,111.31,111.22,34.8695]
[1644506929381,10.943,111.31,111.22,24.4495]
[1644506929780,10.943,111.31,111.22,30.4495]
[1644506929986,31.83348047,111.31,111.23,40.71779349]
[1644506930491,31.83348047,111.31,111.23,46.96779349]
[1644506930690,0.25,111.31,111.23,40.96779349]
[1644506930885,13.7312,111.32,111.23,54.44739349]
[1644506931489,21.00259399,111.32,111.23,54.44739349]
[1644506931688,28.232445,111.31,111.23,54.44739349]
[1644506932287,28.232445,111.31,111.23,60.44739349]
[1644506932488,28.232445,111.31,111.23,19.7296]
[1644506932688,41.714345,111.31,111.23,6.0]
[1644506932888,48.98573899,111.31,111.19,10.67]
[1644506933089,48.98573899,111.31,111.16,10.67]
[1644506933090,1.27139399,111.29,111.16,10.67]
[1644506933293,1.27139399,111.27,111.14,6.0]
[1644506933490,8.92252527,111.25,111.13,35.59304168]
[1644506933689,13.4927,111.22,111.13,49.08484168]
[1644506933889,8.92252527,111.21,111.13,49.08484168]
[1644506934290,48.7202,111.23,111.13,35.59304168]
[1644506934496,48.7202,111.23,111.13,125.76304168]
[1644506934690,17.9857,111.26,111.16,13.4881]
[1644506934890,24.2357,111.26,111.16,13.7381]
[1644506935296,26.5018622,111.25,111.16,56.35335944]
[1644506935796,0.25,111.25,111.16,56.35335944]
[1644506935991,0.25,111.25,111.17,13.4876]
[1644506936193,60.5034,111.26,111.17,13.4876]
[1644506936392,60.5034,111.26,111.17,13.7376]
[1644506936792,30.25408935,111.25,111.17,13.7376]
[1644506937391,30.25408935,111.25,111.17,0.25]
[1644506937593,30.50408935,111.25,111.15,13.4894]
[1644506937793,13.4922,111.23,111.12,34.1269]
[1644506937995,4.497,111.22,111.12,23.4569]
[1644506938193,4.747,111.23,111.12,23.4569]
[1644506938396,4.747,111.23,111.1,100.3845]
[1644506938594,48.30328092,111.22,111.11,53.98468338]
[1644506938793,13.4937,111.21,111.11,53.98468338]
[1644506938993,13.4937,111.21,111.11,6.0]
[1644506939194,19.7437,111.21,111.1,22.7919]
[1644506939393,24.2417,111.21,111.09,35.1814]
[1644506939594,24.2417,111.21,111.09,24.5114]
[1644506939798,34.9117,111.21,111.06,124.97]
[1644506939997,34.9117,111.21,111.07,47.75242524]
[1644506939998,28.67728787,111.2,111.07,47.75242524]
[1644506940195,34.9117,111.21,111.07,47.75242524]
[1644506940196,3.9846824,111.18,111.07,47.75242524]
[1644506940395,17.4850824,111.18,111.07,47.75242524]
[1644506940596,4.499,111.17,111.07,47.75242524]
[1644506940795,4.749,111.17,111.07,53.75242524]
[1644506941000,26.26205766,111.16,111.09,13.4976]
[1644506941196,26.26205766,111.16,111.09,48.78061025]
[1644506941397,26.51205766,111.16,111.09,49.03061025]
[1644506941600,26.51205766,111.16,111.09,0.25]
[1644506942297,26.51205766,111.16,111.06,86.0236]
[1644506942298,26.51205766,111.16,111.06,86.2736]
[1644506942697,46.01165766,111.16,111.06,72.80892484]
[1644506942897,46.01165766,111.16,111.06,62.13892484]
[1644506943398,50.51165766,111.16,111.06,62.13892484]
[1644506943899,50.51165766,111.16,111.06,63.78339049]
[1644506944100,50.51165766,111.16,111.06,64.03339049]
[1644506944299,46.01165766,111.16,111.06,63.78339049]
[1644506944500,46.01165766,111.16,111.06,62.13892484]
[1644506944700,45.76165766,111.16,111.06,62.13892484]
[1644506944900,19.4996,111.16,111.07,1.64446565]
[1644506945202,38.172,111.18,111.07,7.64446565]
[1644506945401,37.8530036,111.18,111.07,7.64446565]
[1644506945600,37.8530036,111.18,111.08,1.64446565]
[1644506945801,37.8530036,111.18,111.08,7.89446565]
[1644506946002,28.66271837,111.17,111.08,7.64446565]
[1644506946205,42.16211837,111.17,111.08,1.64446565]
[1644506946605,42.16211837,111.17,111.09,1.64446565]
[1644506946902,2.23122154,111.23,111.09,1.64446565]
[1644506946903,4.499,111.19,111.09,1.64446565]
[1644506947103,4.497,111.23,111.1,10.67]
[1644506947305,17.989,111.23,111.11,90.17]
[1644506947504,13.492,111.23,111.12,10.67]
[1644506947904,27.19611705,111.22,111.13,37.52182572]
[1644506948203,27.19611705,111.22,111.13,54.19182572]
[1644506948204,31.69311705,111.22,111.13,54.19182572]
[1644506948405,45.18551705,111.22,111.13,16.92]
[1644506948605,40.93851705,111.22,111.13,16.92]
[1644506948809,4.497,111.21,111.13,16.92]
[1644506949005,40.93851705,111.22,111.13,16.92]
[1644506949406,40.93851705,111.22,111.14,38.67172554]
[1644506949607,40.68851705,111.22,111.14,52.16392554]
[1644506949809,60.0754,111.24,111.14,44.92172554]
[1644506950009,46.5852,111.24,111.14,57.23619119]
[1644506950407,46.5852,111.24,111.14,55.59172554]
[1644506950608,46.5852,111.24,111.14,57.23619119]
[1644506950807,25.37082312,111.23,111.14,55.59172554]
[1644506951410,25.37082312,111.23,111.14,16.92]
[1644506951709,25.37082312,111.23,111.15,13.4902]
[1644506952110,25.37082312,111.23,111.15,13.7402]
[1644506952516,25.62082312,111.23,111.15,13.7402]
[1644506952712,31.62082312,111.23,111.15,13.7402]
[1644506952911,31.37082312,111.23,111.15,13.7402]
[1644506953313,44.86242312,111.23,111.15,13.7402]
[1644506954113,49.60842312,111.23,111.15,13.7402]
[1644506954914,43.60842312,111.23,111.15,58.07673608]
[1644506955115,43.60842312,111.23,111.15,62.74673608]
[1644506955316,43.60842312,111.23,111.15,30.4102]
[1644506955515,39.11242312,111.23,111.15,26.05466565]
[1644506955715,25.62082312,111.23,111.15,26.05466565]
[1644506956114,25.62082312,111.23,111.15,32.05466565]
[1644506956316,46.5852,111.24,111.15,32.05466565]
[1644506956916,49.4584,111.28,111.15,122.22466565]
[1644506957216,42.84510538,111.27,111.19,50.35330603]
[1644506957618,43.09510538,111.27,111.19,50.60330603]
[1644506957817,43.09510538,111.27,111.16,44.9565]
[1644506958115,87.52120538,111.27,111.16,0.25]
[1644506958316,87.52120538,111.27,111.15,13.491]
[1644506958515,2.23122154,111.26,111.12,10.67]
[1644506958715,2.23122154,111.26,111.13,47.45425858]
[1644506958716,18.46986489,111.25,111.13,47.45425858]
[1644506959118,13.79986489,111.25,111.13,49.09872423]
[1644506959317,13.79986489,111.25,111.13,53.45425858]
[1644506959519,3.30386489,111.25,111.14,1.64446565]
[1644506959718,3.30386489,111.25,111.15,38.09255308]
[1644506959916,16.79776489,111.25,111.15,38.09255308]
[1644506960118,22.79776489,111.25,111.16,1.64446565]
[1644506960323,22.79776489,111.25,111.17,37.24090942]
[1644506960519,6.0,111.25,111.19,13.4873]
[1644506960717,23.2611,111.27,111.18,1.64446565]
[1644506960918,23.2611,111.27,111.17,43.49090942]
[1644506960919,23.2611,111.27,111.2,1.64446565]
[1644506961417,36.8233,111.29,111.21,48.37186365]
[1644506961628,36.8233,111.29,111.22,13.4838]
[1644506961819,4.495406,111.28,111.22,13.7338]
[1644506962220,4.745406,111.28,111.22,13.7338]
[1644506962621,18.230606,111.28,111.22,0.25]
[1644506962921,18.230606,111.28,111.2,0.25]
[1644506963120,4.745406,111.28,111.2,0.25]
[1644506964124,4.745406,111.28,111.19,99.85863816]
[1644506964522,0.25,111.28,111.19,101.50310381]
[1644506964723,0.25,111.28,111.22,13.4836]
[1644506964922,29.5886,111.29,111.2,4.494]
[1644506965123,23.3386,111.29,111.2,10.494]
[1644506965325,23.3386,111.29,111.2,10.744]
[1644506965524,27.83592551,111.28,111.2,4.744]
[1644506965725,32.32992551,111.28,111.21,38.13164481]
[1644506965923,32.32992551,111.28,111.21,13.4848]
[1644506965924,41.32202551,111.28,111.21,13.4848]
[1644506966124,41.32202551,111.28,111.21,13.7348]
[1644506966525,41.32202551,111.28,111.21,0.25]
[1644506966730,47.32202551,111.28,111.2,4.494]
[1644506966927,4.494,111.28,111.2,4.494]
[1644506967225,4.744,111.28,111.2,1.64446565]
[1644506967426,0.25,111.28,111.2,7.64446565]
[1644506968027,30.53378421,111.28,111.2,7.64446565]
[1644506968326,30.28378421,111.28,111.21,35.22951594]
[1644506968527,30.28378421,111.28,111.2,6.25]
[1644506968727,30.28378421,111.28,111.22,13.4827]
[1644506969127,30.28378421,111.28,111.22,13.7327]
[1644506969429,30.28378421,111.28,111.22,13.4827]
[1644506969927,30.28378421,111.28,111.22,13.7327]
[1644506969928,43.76848421,111.28,111.22,13.7327]
[1644506970129,43.76848421,111.28,111.18,53.37296565]
[1644506970328,43.76848421,111.28,111.18,10.494]
[1644506970329,4.495,111.27,111.18,10.494]
[1644506970733,10.745,111.27,111.18,4.494]
[1644506971028,2.37818606,111.26,111.18,40.88484178]
[1644506971254,8.37818606,111.26,111.18,40.88484178]
[1644506971427,8.62818606,111.26,111.18,40.88484178]
[1644506971631,22.11618606,111.26,111.19,13.4875]
[1644506971828,16.11618606,111.26,111.18,4.494]
[1644506972628,16.11618606,111.26,111.18,4.744]
[1644506972929,16.11618606,111.26,111.18,40.68757586]
[1644506973128,16.11618606,111.26,111.18,46.68757586]
[1644506973330,13.738,111.26,111.19,13.4867]
[1644506973529,13.738,111.26,111.18,42.19357586]
[1644506973530,0.25,111.26,111.18,42.19357586]
[1644506973732,13.4858,111.27,111.18,42.19357586]
[1644506973733,19.7358,111.27,111.18,42.19357586]
[1644506974834,19.7358,111.27,111.21,13.485]
[1644506975033,19.7358,111.27,111.21,48.38678665]
[1644506975235,19.7358,111.27,111.21,13.735]
[1644506975436,19.7358,111.27,111.21,0.25]
[1644506976034,24.2298,111.27,111.21,0.25]
[1644506976235,20.32728453,111.26,111.19,50.45346168]
[1644506976635,20.57728453,111.26,111.19,50.45346168]
[1644506977034,0.25,111.26,111.2,13.4863]
[1644506977337,13.737,111.26,111.17,44.9543]
[1644506977536,13.487,111.26,111.16,24.874]
[1644506977836,24.0963,111.28,111.18,1.64446565]
[1644506978039,24.0963,111.28,111.23,13.483]
[1644506978233,49.76047829,111.29,111.23,13.483]
[1644506978644,49.76047829,111.29,111.18,12.31446565]
[1644506978645,63.24387829,111.29,111.18,12.31446565]
[1644506978836,63.24387829,111.29,111.19,6.25]
[1644506979035,63.24387829,111.29,111.22,13.4842]
[1644506979236,69.24387829,111.29,111.22,0.25]
[1644506979434,63.24387829,111.29,111.22,0.25]
[1644506979636,79.91387829,111.29,111.15,34.4156]
[1644506979837,30.44292154,111.28,111.14,22.9514]
[1644506980037,24.1613,111.27,111.16,38.3653]
[1644506980236,4.495,111.26,111.16,38.3653]
[1644506980437,16.92,111.27,111.16,38.3915]
[1644506980636,6.24009198,111.25,111.17,46.937905]
[1644506980836,12.49009198,111.25,111.17,0.25]
[1644506981037,25.97999198,111.25,111.17,0.25]
[1644506981241,25.97999198,111.25,111.16,38.6415]
[1644506981442,25.97999198,111.25,111.14,67.9186]
[1644506981443,4.496,111.24,111.14,13.4931]
[1644506981642,23.39722154,111.24,111.14,13.4931]
[1644506981842,71.40357829,111.23,111.12,0.024]
[1644506982044,28.0171,111.22,111.11,42.21719805]
[1644506982242,6.24009198,111.21,111.12,0.024]
[1644506982445,13.4948,111.2,111.13,13.4948]
[1644506982646,13.4948,111.2,111.12,0.024]
[1644506982844,13.4948,111.2,111.08,36.38116848]
[1644506982845,24.2428,111.2,111.11,0.024]
[1644506983044,19.7448,111.2,111.09,0.024]
[1644506983244,4.498,111.19,111.09,0.024]
[1644506983444,28.9774,111.19,111.08,24.5245]
[1644506983645,23.44101729,111.18,111.08,58.92909236]
[1644506984046,29.69101729,111.18,111.08,58.92909236]
[1644506984244,29.69101729,111.18,111.08,59.17909236]
[1644506984645,43.19071729,111.18,111.08,59.17909236]
[1644506984846,43.19071729,111.18,111.08,24.7745]
[1644506985846,22.72295298,111.16,111.08,0.024]
[1644506986045,22.72295298,111.16,111.06,114.324]
[1644506986266,28.97295298,111.16,111.06,114.324]
[1644506986463,28.97295298,111.16,111.06,114.3]
[1644506986464,4.5,111.15,111.06,114.3]
[1644506986664,23.44101729,111.14,111.06,43.13067591]
[1644506986866,23.44101729,111.14,111.05,0.024]
[1644506987064,23.69101729,111.14,111.05,0.024]
[1644506987669,13.5037,111.13,111.05,13.5267]
[1644506987867,9.22095298,111.12,111.05,55.16977847]
[1644506988271,13.7537,111.13,111.05,55.16977847]
[1644506989070,13.7537,111.13,111.06,13.5024]
[1644506989268,0.25,111.13,111.07,37.12670858]
[1644506989668,19.5014,111.15,111.07,37.37670858]
[1644506989868,6.0,111.15,111.07,43.37670858]
[1644506990070,15.17,111.2,111.07,43.37670858]
[1644506990371,13.4969,111.18,111.11,13.4962]
[1644506990569,24.90464233,111.17,111.11,13.4962]
[1644506990769,24.90464233,111.17,111.11,13.7462]
[1644506990969,13.4969,111.18,111.11,13.7462]
[1644506991372,13.4969,111.18,111.11,13.4962]
[1644506991570,13.4969,111.18,111.09,13.4981]
[1644506991771,17.9954,111.2,111.09,16.694]
[1644506991970,13.4954,111.2,111.09,16.67]
[1644506992171,6.0,111.2,111.1,0.024]
[1644506992371,53.2057,111.21,111.1,47.80520671]
[1644506992573,47.2057,111.21,111.11,0.024]
[1644506992974,6.13478345,111.2,111.11,0.024]
[1644506993372,6.38478345,111.2,111.11,0.024]
[1644506993675,13.4916,111.23,111.15,13.4916]
[1644506993875,13.4916,111.23,111.15,13.7416]
[1644506994475,30.00716097,111.22,111.15,13.7416]
[1644506995376,13.4916,111.23,111.15,13.7416]
[1644506995579,6.0,111.23,111.15,13.7416]
[1644506995778,19.4894,111.25,111.15,19.7416]
[1644506995978,19.4894,111.25,111.17,13.4889]
[1644506996179,13.4894,111.25,111.17,13.4889]
[1644506996478,32.61007387,111.24,111.17,55.30701653]
[1644506996877,32.86007387,111.24,111.17,55.30701653]
[1644506997280,32.61007387,111.24,111.17,55.30701653]
[1644506997478,32.61007387,111.24,111.17,13.4889]
[1644506997884,46.09967387,111.24,111.17,13.4889]
[1644506998780,46.34967387,111.24,111.13,0.024]
[1644506998987,4.497,111.23,111.13,0.024]
[1644506999181,13.4938,111.21,111.13,0.024]
[1644506999381,13.4938,111.21,111.12,6.0]
[1644506999586,13.4938,111.21,111.11,0.024]
[1644506999882,19.7438,111.21,111.11,39.45646311]
[1644507000083,43.2528,111.21,111.11,39.45646311]
[1644507000285,43.2528,111.21,111.11,0.274]
[1644507000484,68.2481,111.21,111.11,0.274]
[1644507000886,62.2481,111.21,111.13,13.4943]
[1644507001187,38.8765,111.26,111.12,6.16546565]
[1644507001385,23.7095,111.26,111.14,1.64446565]
[1644507001585,23.7095,111.26,111.15,10.67]
[1644507001786,24.9953,111.28,111.15,16.92]
[1644507001986,29.9231317,111.27,111.16,40.85127053]
[1644507002387,29.9231317,111.27,111.16,47.10127053]
[1644507002586,29.9231317,111.27,111.17,46.59746565]
[1644507002786,29.9231317,111.27,111.18,37.61490771]
[1644507003188,29.9231317,111.27,111.18,43.86490771]
[1644507003985,29.9231317,111.27,111.21,13.4851]
[1644507004186,29.9231317,111.27,111.21,58.54337945]
[1644507004387,29.9231317,111.27,111.21,13.7351]
[1644507005389,30.1731317,111.27,111.21,13.7351]
[1644507005587,43.6588317,111.27,111.21,13.7351]
[1644507005891,43.6588317,111.27,111.21,61.36264853]
[1644507006089,43.6588317,111.27,111.21,13.7351]
[1644507006488,43.6588317,111.27,111.19,13.4864]
[1644507006689,48.1538317,111.27,111.19,13.4864]
[1644507006889,48.1538317,111.27,111.19,19.4864]
[1644507007089,56.38505324,111.27,111.14,18.3127]
[1644507007294,67.05505324,111.27,111.13,0.024]
[1644507007490,67.05505324,111.27,111.13,19.5176]
[1644507007491,37.0207,111.26,111.13,19.5176]
[1644507007690,15.166,111.25,111.13,19.4936]
[1644507007890,10.67,111.25,111.13,19.5176]
[1644507008092,10.67,111.25,111.13,6.024]
[1644507008291,2.73883857,111.24,111.14,46.01328184]
[1644507008494,13.4922,111.22,111.15,13.4919]
[1644507008692,13.4922,111.22,111.14,6.024]
[1644507008892,4.497,111.21,111.13,0.024]
[1644507009092,2.48739864,111.18,111.11,6.024]
[1644507009292,2.48739864,111.16,111.11,0.024]
[1644507009491,2.48739864,111.16,111.11,6.0]
[1644507009692,29.12843619,111.16,111.09,62.04315093]
[1644507009894,29.37843619,111.16,111.09,4.497]
[1644507010693,29.37843619,111.16,111.08,0.024]
[1644507010891,16.23669864,111.16,111.08,53.86156961]
[1644507011095,16.23669864,111.16,111.08,40.36176961]
[1644507011892,47.09125891,111.16,111.08,40.36176961]
[1644507012094,47.09125891,111.16,111.08,0.024]
[1644507012295,47.09125891,111.16,111.07,13.5009]
[1644507012296,53.09125891,111.16,111.07,13.5009]
[1644507012516,52.84125891,111.16,111.07,0.024]
[1644507012693,46.84125891,111.16,111.05,52.7887]
[1644507013093,52.84125891,111.16,111.06,42.47040193]
[1644507013292,52.84125891,111.16,111.06,42.49440193]
[1644507013293,4.5,111.15,111.06,42.49440193]
[1644507013493,13.504,111.13,111.06,0.024]
[1644507013795,13.504,111.13,111.05,21.17206565]
[1644507013796,13.754,111.13,111.05,21.17206565]
[1644507013992,13.754,111.13,111.05,7.66846565]
[1644507014594,2.48739864,111.09,111.06,13.5034]
[1644507014794,2.48739864,111.09,111.07,5.57601911]
[1644507015195,2.48739864,111.09,111.07,5.82601911]
[1644507015598,2.48739864,111.09,111.07,0.25]
[1644507016402,2.48739864,111.09,111.04,14.019]
[1644507016999,2.48739864,111.09,111.05,13.5042]
[1644507017200,2.48739864,111.09,111.04,6.25]
[1644507017399,2.73739864,111.09,111.04,0.25]
[1644507017799,2.73739864,111.09,111.02,0.024]
[1644507018002,24.87675552,111.08,111.0,0.024]
[1644507018202,13.5108,111.07,111.0,0.024]
[1644507018401,13.5108,111.07,110.98,6.024]
[1644507018601,13.5108,111.07,110.98,6.0]
[1644507018803,19.7608,111.07,110.98,0.024]
[1644507019005,19.7608,111.07,110.97,6.0]
[1644507019307,7.78521475,111.06,110.96,40.19931358]
[1644507019507,13.5155,111.04,110.96,0.024]
[1644507019704,13.5155,111.04,110.94,0.024]
[1644507019908,2.48739864,111.01,110.94,0.024]
[1644507020128,2.48739864,110.98,110.92,0.024]
[1644507020330,8.73739864,110.98,110.91,0.024]
[1644507020526,8.73739864,110.98,110.9,46.12151929]
[1644507020824,2.73739864,110.98,110.9,46.10151929]
[1644507021024,2.48739864,110.98,110.9,46.10151929]
[1644507021227,2.48739864,110.98,110.9,53.74204715]
[1644507021532,16.26189864,110.98,110.9,6.0]
[1644507021724,8.73739864,110.98,110.89,0.024]
[1644507021925,8.73739864,110.98,110.9,1.64052786]
[1644507022130,8.48739864,110.98,110.9,1.64052786]
[1644507022424,27.05374109,110.97,110.9,6.0]
[1644507022627,27.05374109,110.97,110.9,7.64052786]
[1644507022823,27.30374109,110.97,110.9,6.0]
[1644507023024,27.30374109,110.97,110.89,0.024]
[1644507023225,27.30374109,110.97,110.91,1.64052786]
[1644507023425,27.30374109,110.97,110.91,48.82514074]
[1644507023626,27.30374109,110.97,110.91,55.07514074]
[1644507024028,27.30374109,110.97,110.91,7.89052786]
[1644507024226,2.48739864,110.98,110.92,1.64052786]
[1644507024432,0.25,110.97,110.92,1.64052786]
[1644507024625,0.25,110.97,110.92,7.89052786]
[1644507025126,2.48739864,110.94,110.92,1.64052786]
[1644507025327,2.73739864,110.94,110.89,1.64052786]
[1644507025527,4.97479728,110.94,110.87,1.64052786]
[1644507025927,4.97479728,110.94,110.86,0.024]
[1644507026129,4.97479728,110.94,110.86,41.80783833]
[1644507026328,4.97479728,110.94,110.87,1.64052786]
[1644507026535,4.97479728,110.94,110.86,0.024]
[1644507026734,4.97479728,110.94,110.84,0.024]
[1644507026928,4.97479728,110.94,110.83,15.178]
[1644507027328,4.97479728,110.94,110.84,1.64052786]
[1644507027527,4.97479728,110.94,110.84,1.66452786]
[1644507027729,4.97479728,110.94,110.86,13.5241]
[1644507027931,4.97479728,110.94,110.87,45.98281617]
[1644507028137,4.97479728,110.94,110.87,47.62330473]
[1644507028333,4.97479728,110.94,110.87,53.87330473]
[1644507028530,4.97479728,110.94,110.88,1.64048856]
[1644507028729,4.97479728,110.94,110.88,6.0]
[1644507028931,4.97479728,110.94,110.89,40.52790816]
[1644507030229,2.48739864,110.94,110.89,40.77790816]
[1644507030429,2.48739864,110.92,110.89,40.77790816]
[1644507030628,2.48739864,110.92,110.91,36.05809102]
[1644507030828,2.48739864,110.92,110.91,36.30809102]
[1644507031029,2.48739864,110.92,110.91,0.25]
[1644507031530,16.67,110.99,110.92,50.0]
[1644507031733,10.67,111.0,110.92,7.658]
[1644507031930,15.175,111.04,110.92,7.908]
[1644507032130,13.5196,111.02,110.93,0.024]
[1644507032332,37.18288535,111.02,110.93,39.47351331]
[1644507032631,37.18288535,111.02,110.93,39.49751331]
[1644507032829,37.18288535,111.02,110.93,39.74751331]
[1644507033029,13.5196,111.02,110.93,39.74751331]
[1644507033232,13.5196,111.02,110.93,45.74751331]
[1644507033729,18.0222,111.04,110.93,45.74751331]
[1644507033930,18.0222,111.04,110.93,50.25251331]
[1644507034230,4.505,111.04,110.93,50.25251331]
[1644507034630,10.67,111.06,110.93,50.25251331]
[1644507034830,61.20390873,111.08,110.93,60.92251331]
[1644507034831,71.87390873,111.08,110.93,60.92251331]
[1644507035039,6.0,111.06,110.93,60.92251331]
[1644507035231,13.5147,111.06,110.95,13.5136]
[1644507035431,6.73422154,111.09,110.96,39.90087444]
[1644507035631,4.503,111.11,110.97,10.694]
[1644507035831,388.77510309,111.13,110.98,4.526]
[1644507035832,0.00739864,111.01,110.98,4.526]
[1644507036032,0.00739864,111.01,110.99,106.92839994]
[1644507036232,0.00739864,111.01,111.0,4.503]
[1644507036431,388.77510309,111.13,111.01,110.0]
[1644507036633,388.77510309,111.13,111.04,13.5031]
[1644507036935,129.9716,111.17,111.04,6.25]
[1644507036936,74.2833,111.17,111.04,6.25]
[1644507037136,74.2833,111.17,111.05,10.694]
[1644507037332,80.2833,111.17,111.06,0.024]
[1644507037533,28.74238477,111.16,111.06,34.99554161]
[1644507037735,6.0,111.16,111.06,54.49584161]
[1644507037933,0.25,111.16,111.06,41.24554161]
[1644507038133,74.2833,111.17,111.07,15.17]
[1644507038334,13.5006,111.18,111.07,21.42]
[1644507038534,13.5006,111.18,111.07,16.92]
[1644507038732,33.54651591,111.19,111.08,43.10905588]
[1644507038932,39.54651591,111.19,111.07,4.499]
[1644507039136,2.23122154,111.18,111.05,10.694]
[1644507039332,2.23122154,111.18,111.06,0.024]
[1644507039333,6.0,111.18,111.06,0.024]
[1644507039538,2.23122154,111.21,111.07,15.169]
[1644507039734,78.8686,111.24,111.07,21.169]
[1644507039936,78.8686,111.24,111.08,0.32125681]
[1644507040139,4.498,111.23,111.09,10.67]
[1644507040436,371.06553714,111.26,111.1,45.43644422]
[1644507040437,4.498,111.25,111.1,45.43644422]
[1644507040636,371.06553714,111.26,111.11,10.67]
[1644507040839,371.06553714,111.26,111.12,4.497]
[1644507041038,74.5145,111.29,111.13,10.67]
[1644507041235,4.495,111.32,111.17,4.34]
[1644507041437,1.27139399,111.33,111.2,13.4819]
[1644507041634,5.76639399,111.34,111.22,34.25337352]
[1644507041835,541.12639005,111.35,111.23,4.493]
[1644507042038,536.63339005,111.35,111.23,15.163]
[1644507042237,542.63339005,111.35,111.23,21.413]
[1644507042641,536.63339005,111.35,111.24,48.65285146]
[1644507042838,4.492,111.41,111.25,10.97456894]
[1644507043041,4.492,111.41,111.25,146.03502623]
[1644507043240,1.27139399,111.44,111.29,0.31710483]
[1644507043440,361.17677739,111.45,111.3,10.67]
[1644507043641,4.489,111.44,111.31,13.4675]
[1644507043843,147.17879489,111.45,111.32,126.0]
[1644507044050,22.5424,111.49,111.33,4.488]
[1644507044248,4.488,111.52,111.37,0.31136012]
[1644507044448,6.19418197,111.63,111.37,0.31136012]
[1644507044449,1.49721602,111.58,111.38,142.9785812]
[1644507044652,1.49721602,111.58,111.41,0.3238857]
[1644507044849,13.48552203,111.58,111.42,144.09]
[1644507045050,1.27139399,111.6,111.43,133.42]
[1644507045248,269.15396244,111.62,111.45,0.31407872]
[1644507045448,269.15396244,111.62,111.49,0.31367982]
[1644507045449,267.88256845,111.62,111.49,0.31367982]
[1644507045652,0.22,111.62,111.5,4.482]
[1644507045851,0.22,111.62,111.51,10.67]
[1644507046050,0.22,111.62,111.53,0.30810732]
[1644507046350,0.22,111.62,111.54,15.151]
[1644507046749,0.22,111.62,111.54,21.401]
[1644507046948,0.22,111.62,111.54,16.92]
[1644507047362,4.481,111.74,111.55,4.481]
[1644507047550,4.481,111.74,111.56,10.67]
[1644507047748,4.481,111.74,111.57,15.148]
[1644507047950,13.71642178,111.75,111.57,15.148]
[1644507048150,45.20293482,111.72,111.57,18.5620263]
[1644507048550,38.01259539,111.7,111.57,16.92]
[1644507048950,40.24381693,111.7,111.57,16.92]
[1644507049153,40.24381693,111.7,111.58,4.478]
[1644507049352,4.478,111.69,111.53,137.898]
[1644507049550,34.72781532,111.68,111.53,133.67]
[1644507049754,40.72781532,111.68,111.54,15.15]
[1644507049950,4.479,111.67,111.54,10.67]
[1644507050150,38.98156751,111.66,111.54,10.67]
[1644507050350,39.23156751,111.66,111.54,10.67]
[1644507050551,47.46278905,111.66,111.51,10.67]
[1644507050753,2.23122154,111.65,111.5,15.15]
[1644507050952,2.23122154,111.65,111.51,10.67]
[1644507050953,43.4006543,111.64,111.51,10.67]
[1644507051351,2.23122154,111.63,111.51,10.67]
[1644507051651,40.84406036,111.61,111.51,10.67]
[1644507052051,2.23122154,111.6,111.51,10.67]
[1644507052357,49.78933914,111.59,111.48,10.67]